Workbook

Sheet Лист1
A1: Меню завтраков для обучающихся 5-11-х классов с ограниченными возможностями здоровья
B2: (вариант 1 на сумму 95,00 рублей)
A3: Основание:
A4: 1. Санитарно-эпидемиологические правила и нормы СанПиН 2.3/2.4.3590-20. Утверждены постановлением Главного государственного санитарного врача Российской Федерации от 27 октября 2020г. №32
A5: 2. Сборник рецептур на продукцию для обучающихся во всех образовательных учреждениях. Под ред. М.П.Могильного и В.А.Тутельяна. - М.:ДеЛи плюс,2015 и 2017 года
A6: День: | B6: первый
A7: Неделя: | B7: первая
A9: № рецептуры | B9: Приём пищи, наименование блюда | C9: Масса порции (г) | D9: Пищевые вещества (г.) | G9: Энергетическая ценность (ккал) | H9: Витамины (мг.) | L9: Минеральные вещества (мг.)
D10: Б | E10: Ж | F10: У | H10: В1 | I10: С | J10: А | K10: Е | L10: Са | M10: Р | N10: Мg | O10: Fe
A11: 396 | B11: Блинчики с повидлом 170/80 | C11: 170 | D11: 12.4 | E11: 8.7 | F11: 66.4 | G11: 394.1 | H11: 0.2 | I11: 1.9 | J11: 26.5 | K11: 4.1 | L11: 190.9 | M11: 233.1 | N11: 56.5 | O11: 1.7
A12: б/н | B12: с повидлом | C12: 80 | D12: 0.45 | F12: 57.3 | G12: 230.7 | I12: 1.1 | K12: 0.34 | L12: 0.9 | M12: 14.4 | N12: 7.2 | O12: 0.34
A13: 377 | B13: Чай с сахаром и лимоном 195/5 | C13: 200 | D13: 0.13 | E13: 0.02 | F13: 9.9 | G13: 29.5 | I13: 2.8 | K13: 0.01 | L13: 14.9 | M13: 4.3 | N13: 2.3 | O13: 0.34
A14: 338 | B14: Фрукты по сезону | C14: 100 | D14: 0.4 | E14: 0.4 | F14: 12.3 | G14: 47 | H14: 0.02 | I14: 10 | J14: - | K14: 0.25 | L14: 20 | M14: 13.8 | N14: 11.3 | O14: 2.8
B15: Соль йодированная | C15: 1
A16: ИТОГО: | C16: =SUM(C11:C14) -> 550 | D16: =SUM(D11:D14) -> 13.38 | E16: 9.12 | F16: 145.9 | G16: 701.3 | H16: 0.22 | I16: 15.8 | J16: 26.5 | K16: 4.7 | L16: 226.7 | M16: 265.6 | N16: 77.3 | O16: 5.18
A17: День: | B17: второй
A18: Неделя: | B18: первая
A20: № рецептуры | B20: Приём пищи, наименование блюда | C20: Масса порции (г) | D20: Пищевые вещества (г.) | G20: Энергетическая ценность (ккал) | H20: Витамины (мг.) | L20: Минеральные вещества (мг.)
D21: Б | E21: Ж | F21: У | H21: В1 | I21: С | J21: А | K21: Е | L21: Са | M21: Р | N21: Мg | O21: Fe
A22: 223/334 | B22: Запеканка из творога с повидлом 170/80 | C22: 200 | D22: 35.2 | E22: 15.1 | F22: 70.4 | G22: 507.6 | H22: 0.07 | I22: 2.6 | J22: 92.8 | K22: 2 | L22: 297.2 | M22: 278.8 | N22: 39.5 | O22: 1.4
B23: повидло | C23: 80 | D23: 0.45 | F23: 57.3 | G23: 230.7 | I23: 1.1 | K23: 0.34 | L23: 0.9 | M23: 14.4 | N23: 7.2 | O23: 0.34
A24: 376 | B24: Чай с сахаром | C24: 200 | D24: 0.12 | E24: 0.02 | F24: 7 | G24: 28.6 | I24: 1.6 | K24: 0.01 | L24: 15.3 | M24: 4.4 | N24: 2.4 | O24: 0.4
A25: б/н | B25: Батон нарезной | C25: 70 | D25: 5.2 | E25: 1.96 | F25: 36.16 | G25: 200.2 | H25: 0.7 | I25: - | J25: - | K25: 0.6 | L25: 11.3 | M25: 60.9 | N25: 53 | O25: 0.8
B26: Соль йодированная | C26: 1
A27: ИТОГО: | C27: =SUM(C22:C25) -> 550 | D27: =SUM(D22:D25) -> 40.97 | E27: 17.08 | F27: 170.86 | G27: 967.1 | H27: 0.77 | I27: 5.3 | J27: 92.8 | K27: 2.95 | L27: 324.7 | M27: 358.5 | N27: 102.1 | O27: 2.94
A28: День | B28: третий
A29: Неделя: | B29: первая
A30: № рецептуры | B30: Приём пищи, наименование блюда | C30: Масса порции (г) | D30: Пищевые вещества (г.) | G30: Энергетическая ценность (ккал) | H30: Витамины (мг.) | L30: Минеральные вещества (мг.)
D31: Б | E31: Ж | F31: У | H31: В1 | I31: С | J31: А | K31: Е | L31: Са | M31: Р | N31: Мg | O31: Fe
A32: 210 | B32: Омлет натуральный | C32: 220 | D32: 20.4 | E32: 36.4 | F32: 3.9 | G32: 424.8 | H32: 0.11 | I32: - | J32: 379.3 | K32: 0.86 | L32: 151.2 | M32: 330 | N32: 23.7 | O32: 3.9
A33: б/н | B33: Зеленый горошек | C33: 50 | D33: 2.1 | E33: 0.16 | F33: 6.1 | G33: 35 | I33: 4.9 | J33: 13.5 | L33: 18 | M33: 33.5 | N33: 8.5 | O33: 0.5
A34: 377 | B34: Чай с сахаром и лимоном 195/5 | C34: 200 | D34: 0.13 | E34: 0.02 | F34: 9.9 | G34: 29.5 | I34: 2.8 | K34: 0.01 | L34: 14.9 | M34: 4.3 | N34: 2.3 | O34: 0.34
A35: б/н | B35: Батон нарезной | C35: 40 | D35: 3.16 | E35: 0.4 | F35: 19.32 | G35: 93.52 | H35: 0.04 | K35: 0.52 | L35: 8.12 | M35: 34.8 | N35: 12.12 | O35: 0.44
A36: б/н | B36: Хлеб ржаной | C36: 40 | D36: 0.18 | E36: 0.6 | F36: 10.4 | G36: 56 | H36: 0.02 | K36: 0.48 | L36: 12.2 | M36: 56.6 | N36: 12.12 | O36: 0.16
A37: б/н | B37: Соль йодированная | C37: 1
A38: ИТОГО: | C38: =SUM(C32:C36) -> 550 | D38: =SUM(D32:D36) -> 25.97 | E38: 37.58 | F38: 49.62 | G38: 638.82 | H38: 0.17 | I38: 7.7 | J38: 392.8 | K38: 1.87 | L38: 204.42 | M38: 459.2 | N38: 58.74 | O38: 5.34
A39: День: | B39: четвертый
A40: Неделя: | B40: первая
A42: № рецептуры | B42: Приём пищи, наименование блюда | C42: Масса порции (г) | D42: Пищевые вещества (г.) | G42: Энергетическая ценность (ккал) | H42: Витамины (мг.) | L42: Минеральные вещества (мг.)
D43: Б | E43: Ж | F43: У | H43: В1 | I43: С | J43: А | K43: Е | L43: Са | M43: Р | N43: Мg | O43: Fe
A44: 204 | B44: Макароны отварные с сыром 190/10 | C44: 190 | D44: 6.8 | E44: 18.1 | F44: 38.4 | G44: 255.8 | H44: 0.07 | I44: 0 | J44: 36.2 | K44: 0.95 | L44: 15.4 | M44: 47.6 | N44: 10.4 | O44: 1
B45: Сыр | C45: 10 | D45: 2.32 | E45: 2.95 | F45: - | G45: 36 | H45: 0.006 | I45: 0.08 | J45: 26 | K45: 0.05 | L45: 88 | M45: 50 | N45: 3.5 | O45: 0.1
A46: 376 | B46: Чай с сахаром | C46: 200 | D46: 0.12 | E46: 0.02 | F46: 7 | G46: 28.6 | I46: 1.6 | K46: 0.01 | L46: 15.3 | M46: 4.4 | N46: 2.4 | O46: 0.4
A47: б/н | B47: Батон нарезной | C47: 70 | D47: 5.2 | E47: 1.96 | F47: 36.16 | G47: 200.2 | H47: 0.7 | I47: - | J47: - | K47: 0.6 | L47: 11.3 | M47: 60.9 | N47: 53 | O47: 0.8
A48: 338 | B48: Фрукты по сезону | C48: 100 | D48: 0.4 | E48: 0.4 | F48: 12.3 | G48: 47 | H48: 0.02 | I48: 10 | J48: - | K48: 0.25 | L48: 20 | M48: 13.8 | N48: 11.3 | O48: 2.8
B49: Соль йодированная | C49: 1
A50: ИТОГО | C50: =SUM(C44:C48) -> 570 | D50: =SUM(D44:D48) -> 14.84 | E50: 23.43 | F50: 93.86 | G50: 567.6 | H50: 0.796 | I50: 11.68 | J50: 62.2 | K50: 1.86 | L50: 150 | M50: 176.7 | N50: 80.6 | O50: 5.1
A51: День: | B51: пятый
A52: Неделя: | B52: первая
A54: № рецептуры | B54: Приём пищи, наименование блюда | C54: Масса порции (г) | D54: Пищевые вещества (г.) | G54: Энергетическая ценность (ккал) | H54: Витамины (мг.) | L54: Минеральные вещества (мг.)
D55: Б | E55: Ж | F55: У | H55: В1 | I55: С | J55: А | K55: Е | L55: Са | M55: Р | N55: Мg | O55: Fe
A56: 175 | B56: Каша «Дружба» молочная (рис, пшено) | C56: 280 | D56: 7.7 | E56: 14.2 | F56: 55.3 | G56: 381.8 | H56: 0.1 | I56: 1.2 | J56: 69.8 | K56: 0.2 | L56: 169.8 | M56: 199.36 | N56: 47.4 | O56: 1
A57: 382 | B57: Какао с молоком | C57: 200 | D57: 6.5 | E57: 1.3 | F57: 19 | G57: 94.7 | H57: 0.05 | I57: 1.2 | J57: 21.96 | K57: - | L57: 119.9 | M57: 112.1 | N57: 23 | O57: 1.8
A58: б/н | B58: Батон нарезной | C58: 70 | D58: 5.2 | E58: 1.96 | F58: 36.16 | G58: 200.2 | H58: 0.7 | I58: - | J58: - | K58: 0.6 | L58: 11.3 | M58: 60.9 | N58: 53 | O58: 0.8
B59: Соль йодированная
A60: ИТОГО: | C60: =SUM(C56:C58) -> 550 | D60: =SUM(D56:D58) -> 19.4 | E60: 17.46 | F60: 110.46 | G60: 676.7 | H60: 0.85 | I60: 2.4 | J60: 91.76 | K60: 0.8 | L60: 301 | M60: 372.36 | N60: 123.4 | O60: 3.6
A61: День: | B61: шестой
A62: Неделя: | B62: вторая
A64: № рецептуры | B64: Приём пищи, наименование блюда | C64: Масса порции (г) | D64: Пищевые вещества (г.) | G64: Энергетическая ценность (ккал) | H64: Витамины (мг.) | L64: Минеральные вещества (мг.)
D65: Б | E65: Ж | F65: У | H65: В1 | I65: С | J65: А | K65: Е | L65: Са | M65: Р | N65: Мg | O65: Fe
A66: 401 | B66: Оладьи с повидлом 170/80 | C66: 170 | D66: 13 | E66: 13 | F66: 69.7 | G66: 450.5 | H66: 0.3 | I66: 0.6 | J66: 31.2 | K66: 6 | L66: 142.5 | M66: 210 | N66: 55.4 | O66: 2.4
B67: повидло | C67: 80 | D67: 0.45 | F67: 57.3 | G67: 230.7 | I67: 1.1 | K67: 0.34 | L67: 0.9 | M67: 14.4 | N67: 7.2 | O67: 0.34
A68: 377 | B68: Чай с сахаром и лимоном 195/5 | C68: 200 | D68: 0.13 | E68: 0.02 | F68: 9.9 | G68: 29.5 | I68: 2.8 | K68: 0.01 | L68: 14.9 | M68: 4.3 | N68: 2.3 | O68: 0.34
A69: 338 | B69: Фрукты по сезону | C69: 100 | D69: 0.4 | E69: 0.4 | F69: 12.3 | G69: 47 | H69: 0.02 | I69: 10 | J69: - | K69: 0.25 | L69: 20 | M69: 13.8 | N69: 11.3 | O69: 2.8
B70: Соль йодированная | C70: 1
A71: ИТОГО: | C71: =SUM(C66:C69) -> 550 | D71: =SUM(D66:D69) -> 13.98 | E71: 13.42 | F71: 149.2 | G71: 757.7 | H71: 0.32 | I71: 14.5 | J71: 31.2 | K71: 6.6 | L71: 178.3 | M71: 242.5 | N71: 76.2 | O71: 5.88
A72: День: | B72: седьмой
A73: Неделя: | B73: вторая
A75: № рецептуры | B75: Приём пищи, наименование блюда | C75: Масса порции (г) | D75: Пищевые вещества (г.) | G75: Энергетическая ценность (ккал) | H75: Витамины (мг.) | L75: Минеральные вещества (мг.)
D76: Б | E76: Ж | F76: У | H76: В1 | I76: С | J76: А | K76: Е | L76: Са | M76: Р | N76: Мg | O76: Fe
A77: 174 | B77: Каша рисовая молочная с маслом сливочным | C77: 280 | D77: 8.4 | E77: 15.2 | F77: 60.1 | G77: 411.6 | H77: 0.19 | J77: 69.8 | K77: 0.29 | L77: 166.7 | M77: 200.4 | N77: 46.4 | O77: 0.8
A78: б/н | B78: Батон нарезной | C78: 70 | D78: 5.2 | E78: 1.96 | F78: 36.16 | G78: 200.2 | H78: 0.7 | I78: - | J78: - | K78: 0.6 | L78: 11.3 | M78: 60.9 | N78: 53 | O78: 0.8
A79: 376 | B79: Чай с сахаром | C79: 200 | D79: 0.12 | E79: 0.02 | F79: 7 | G79: 28.6 | I79: 1.6 | K79: 0.01 | L79: 15.3 | M79: 4.4 | N79: 2.4 | O79: 0.4
B80: Соль йодированная | C80: 1
A81: ИТОГО: | C81: =SUM(C77:C79) -> 550 | D81: =SUM(D77:D79) -> 13.72 | E81: 17.18 | F81: 103.26 | G81: 640.4 | H81: 0.89 | I81: 1.6 | J81: 69.8 | K81: 0.9 | L81: 193.3 | M81: 265.7 | N81: 101.8 | O81: 2
A84: День: | B84: восьмой
A85: Неделя: | B85: вторая
A87: № рецептуры | B87: Приём пищи, наименование блюда | C87: Масса порции (г) | D87: Пищевые вещества (г.) | G87: Энергетическая ценность (ккал) | H87: Витамины (мг.) | L87: Минеральные вещества (мг.)
D88: Б | E88: Ж | F88: У | H88: В1 | I88: С | J88: А | K88: Е | L88: Са | M88: Р | N88: Мg | O88: Fe
A89: 223 | B89: Запеканка из творога с повидлом 200/60 | C89: 200 | D89: 35.2 | E89: 15.1 | F89: 70.4 | G89: 507.6 | H89: 0.07 | I89: 2.6 | J89: 92.8 | K89: 2 | L89: 297.2 | M89: 278.8 | N89: 39.5 | O89: 1.4
B90: повидло | C90: 60 | D90: 0.3 | F90: 42.9 | G90: 172.95 | I90: 0.75 | K90: 0.26 | L90: 0.7 | M90: 10.8 | N90: 5.4 | O90: 0.3
A91: 377 | B91: Чай с сахаром и лимоном 195/5 | C91: 200 | D91: 0.13 | E91: 0.02 | F91: 9.9 | G91: 29.5 | I91: 2.8 | K91: 0.01 | L91: 14.9 | M91: 4.3 | N91: 2.3 | O91: 0.34
A92: б/н | B92: Батон нарезной | C92: 50 | D92: 3.75 | E92: 1.4 | F92: 25.85 | G92: 143 | H92: 0.5 | I92: - | J92: - | K92: 0.65 | L92: 11.5 | M92: 43.5 | N92: 16.5 | O92: 0.55
A93: б/н | B93: Печенье | C93: 40 | D93: 1.12 | E93: 9.8 | F93: 20.4 | G93: 185.6 | H93: 0.06 | I93: - | J93: 38.4 | K93: 0.6 | L93: 16.6 | M93: 46.4 | N93: 8 | O93: 0.5
B94: Соль йодированная | C94: 1
A95: ИТОГО: | C95: =SUM(C89:C93) -> 550 | D95: =SUM(D89:D93) -> 40.5 | E95: 26.32 | F95: 169.45 | G95: 1038.65 | H95: 0.63 | I95: 6.15 | J95: 131.2 | K95: 3.52 | L95: 340.9 | M95: 383.8 | N95: 71.7 | O95: 3.09
A97: День | B97: девятый
A98: Неделя | B98: вторая
A99: № рецептуры | B99: Приём пищи, наименование блюда | C99: Масса порции (г) | D99: Пищевые вещества (г.) | G99: Энергетическая ценность (ккал) | H99: Витамины (мг.) | L99: Минеральные вещества (мг.)
D100: Б | E100: Ж | F100: У | H100: В1 | I100: С | J100: А | K100: Е | L100: Са | M100: Р | N100: Мg | O100: Fe
A101: 173 | B101: Каша вязкая молочная пшенная | C101: 280 | D101: 10 | E101: 12.8 | F101: 62.82 | G101: 407.27 | H101: 0.18 | I101: 0.96 | J101: 69.75 | L101: 186.8 | M101: 281.65 | N101: 56.42 | O101: 2.98
A102: 376 | B102: Чай с сахаром | C102: 200 | D102: 0.12 | E102: 0.02 | F102: 7 | G102: 28.6 | I102: 1.6 | K102: 0.01 | L102: 15.3 | M102: 4.4 | N102: 2.4 | O102: 0.4
A103: б/н | B103: Батон нарезной | C103: 50 | D103: 3.7 | E103: 1.4 | F103: 25.85 | G103: 143 | H103: 0.5 | I103: - | J103: - | K103: 0.46 | L103: 8.1 | M103: 43.5 | N103: 16.5 | O103: 0.56
A104: 338 | B104: Фрукты по сезону | C104: 100 | D104: 0.4 | E104: 0.4 | F104: 12.3 | G104: 47 | H104: 0.02 | I104: 10 | J104: - | K104: 0.25 | L104: 20 | M104: 13.8 | N104: 11.3 | O104: 2.8
B105: Соль йодированная | C105: 1
A106: ИТОГО | C106: =SUM(C101:C104) -> 630 | D106: =SUM(D101:D104) -> 14.22 | E106: 14.62 | F106: 107.97 | G106: 625.87 | H106: 0.7 | I106: 12.56 | J106: 69.75 | K106: 0.72 | L106: 230.2 | M106: 343.35 | N106: 86.62 | O106: 6.74
A107: День | B107: десятый
A108: Неделя | B108: вторая
A109: № рецептуры | B109: Приём пищи, наименование блюда | C109: Масса порции (г) | D109: Пищевые вещества (г.) | G109: Энергетическая ценность (ккал) | H109: Витамины (мг.) | L109: Минеральные вещества (мг.)
D110: Б | E110: Ж | F110: У | H110: В1 | I110: С | J110: А | K110: Е | L110: Са | M110: Р | N110: Мg | O110: Fe
A111: 204 | B111: Макароны отварные с сыром 190/10 | C111: 190 | D111: 6.8 | E111: 18.1 | F111: 38.4 | G111: 255.8 | H111: 0.07 | I111: 0 | J111: 36.2 | K111: 0.95 | L111: 15.4 | M111: 47.6 | N111: 10.4 | O111: 1
B112: Сыр | C112: 10 | D112: 2.32 | E112: 2.95 | F112: - | G112: 36 | H112: 0.006 | I112: 0.08 | J112: 26 | K112: 0.05 | L112: 88 | M112: 50 | N112: 3.5 | O112: 0.1
A113: 377 | B113: Чай с сахаром и лимоном 195/5 | C113: 200 | D113: 0.13 | E113: 0.02 | F113: 9.9 | G113: 29.5 | I113: 2.8 | K113: 0.01 | L113: 14.9 | M113: 4.3 | N113: 2.3 | O113: 0.34
A114: 338 | B114: Фрукты по сезону | C114: 100 | D114: 0.4 | E114: 0.4 | F114: 12.3 | G114: 47 | H114: 0.02 | I114: 10 | J114: - | K114: 0.25 | L114: 20 | M114: 13.8 | N114: 11.3 | O114: 2.8
A115: б/н | B115: Батон нарезной | C115: 70 | D115: 5.2 | E115: 1.96 | F115: 36.16 | G115: 200.2 | H115: 0.7 | I115: - | J115: - | K115: 0.6 | L115: 11.3 | M115: 60.9 | N115: 53 | O115: 0.8
B116: Соль иодированная | C116: 1
B117: ИТОГО: | C117: =SUM(C111:C115) -> 570 | D117: =SUM(D111:D115) -> 14.85 | E117: 23.43 | F117: 96.76 | G117: 568.5 | H117: 0.796 | I117: 12.88 | J117: 62.2 | K117: 1.86 | L117: 149.6 | M117: 176.6 | N117: 80.5 | O117: 5.04
A119: Основные показатели в пищевых веществах и энергетической ценности (к СанПиН 2.3/2.4.3590-20)
A120: Основные показатели | B120: Пищевые вещества (г) | E120: Энергетическая ценность (ккал)
A122: Дни по меню
B123: Б | C123: Ж | D123: У
A124: 1 день | B124: 13.38 | C124: 9.12 | D124: 145.9 | E124: 701.3
A125: 2 день | B125: 40.97 | C125: 17.08 | D125: 170.86 | E125: 967.1
A126: 3 день | B126: 25.97 | C126: 37.58 | D126: 49.62 | E126: 638.82
A127: 4 день | B127: 14.84 | C127: 23.43 | D127: 93.86 | E127: 567.6
A128: 5 день | B128: 19.4 | C128: 17.46 | D128: 110.46 | E128: 676.7
A129: 6 день | B129: 13.98 | C129: 13.42 | D129: 149.2 | E129: 757.7
A130: 7 день | B130: 13.72 | C130: 17.18 | D130: 103.26 | E130: 640.4
A131: 8 день | B131: 40.5 | C131: 26.32 | D131: 169.45 | E131: 1038.65
A132: 9 день | B132: 14.22 | C132: 14.62 | D132: 107.97 | E132: 625.87
A133: 10 день | B133: 14.85 | C133: 23.43 | D133: 96.76 | E133: 568.5
A134: Итого за 10 дней | B134: =SUM(B124:B133) -> 211.83 | C134: =SUM(C124:C133) -> 199.64 | D134: 1197.34 | E134: 7182.64
A135: Итого за 1 день | B135: =SUM(B134/10) -> 21.183 | C135: =SUM(C134/10) -> 19.964 | D135: 119.734 | E135: 718.264
A136: Завтрак – 20% от нормы | B136: 20% - от нормы , составит 18 | C136: 20% - от нормы составит 18,4 | D136: 20% - от нормы составит 76,6 | E136: 20% - от нормы составит 544
